[Event "Late Titled Tuesday Blitz February 8 2022"]
[White "Avazkhonov, Alikhon"]
[Black "Dias, Joao Batista"]
[WhiteFideId "14208504"]
[BlackFideId "2108240"]
[WhiteElo "1739"]
[BlackElo "1898"]
[Result "1-0"]
[Round "10"]
[TimeControl "180+1"]
[Date "2022.02.09"]
[WhiteClock "0:00:05"]
[BlackClock "0:01:02"]

1. f4 {[%clk 0:03:00]}  Nf6 {[%clk 0:02:56]} 2. Nf3 {[%clk 0:03:00]}  e6 {[%clk 0:02:55]} 3. g3 {[%clk 0:03:00]}  d5 {[%clk 0:02:55]} 4. Bg2 {[%clk 0:03:01]}  h6 {[%clk 0:02:49]} 5. O-O {[%clk 0:03:01]}  b6 {[%clk 0:02:48]} 6. d3 {[%clk 0:03:01]}  Bb7 {[%clk 0:02:49]} 7. Qe1 {[%clk 0:03:00]}  Nbd7 {[%clk 0:02:49]} 8. Nc3 {[%clk 0:02:59]}  Nc5 {[%clk 0:02:49]} 9. b4 {[%clk 0:02:34]}  Ncd7 {[%clk 0:02:45]} 10. b5 {[%clk 0:02:35]}  Nc5 {[%clk 0:02:44]} 11. a4 {[%clk 0:02:27]}  Bd6 {[%clk 0:02:38]} 12. Ne5 {[%clk 0:02:21]}  Ncd7 {[%clk 0:02:34]} 13. Nc6 {[%clk 0:02:15]}  Bxc6 {[%clk 0:02:33]} 14. bxc6 {[%clk 0:02:15]}  Nf8 {[%clk 0:02:30]} 15. e4 {[%clk 0:02:14]}  dxe4 {[%clk 0:02:28]} 16. dxe4 {[%clk 0:02:12]}  Bc5+ {[%clk 0:02:28]} 17. Kh1 {[%clk 0:02:11]}  Ng6 {[%clk 0:02:27]} 18. e5 {[%clk 0:02:08]}  Nd5 {[%clk 0:02:21]} 19. Nxd5 {[%clk 0:01:59]}  exd5 {[%clk 0:02:21]} 20. f5 {[%clk 0:01:53]}  Nf8 {[%clk 0:02:15]} 21. Bb2 {[%clk 0:01:50]}  d4 {[%clk 0:02:11]} 22. Rd1 {[%clk 0:01:47]}  Nh7 {[%clk 0:02:05]} 23. c3 {[%clk 0:01:44]}  d3 {[%clk 0:01:59]} 24. Qe4 {[%clk 0:01:34]}  Ng5 {[%clk 0:01:55]} 25. Qxd3 {[%clk 0:01:19]}  Qxd3 {[%clk 0:01:52]} 26. Rxd3 {[%clk 0:01:20]}  Rd8 {[%clk 0:01:49]} 27. Rfd1 {[%clk 0:01:16]}  Rxd3 {[%clk 0:01:46]} 28. Rxd3 {[%clk 0:01:16]}  g6 {[%clk 0:01:39]} 29. h4 {[%clk 0:01:15]}  gxf5 {[%clk 0:01:29]} 30. Rd7 {[%clk 0:00:51]}  Ne4 {[%clk 0:01:26]} 31. Rxc7 {[%clk 0:00:41]}  Kd8 {[%clk 0:01:19]} 32. Rxa7 {[%clk 0:00:35]}  Re8 {[%clk 0:01:13]} 33. Ra8+ {[%clk 0:00:16]}  Ke7 {[%clk 0:01:10]} 34. Rxe8+ {[%clk 0:00:15]}  Kxe8 {[%clk 0:01:10]} 35. Bxe4 {[%clk 0:00:10]}  fxe4 {[%clk 0:01:10]} 36. Kg2 {[%clk 0:00:08]}  Kd8 {[%clk 0:01:08]} 37. Bc1 {[%clk 0:00:08]}  Kc7 {[%clk 0:01:09]} 38. Bxh6 {[%clk 0:00:07]}  Kxc6 {[%clk 0:01:09]} 39. Bg7 {[%clk 0:00:06]}  Kd7 {[%clk 0:01:06]} 40. h5 {[%clk 0:00:06]}  Be3 {[%clk 0:01:06]} 41. h6 {[%clk 0:00:06]}  Bxh6 {[%clk 0:01:06]} 42. Bxh6 {[%clk 0:00:07]}  Ke6 {[%clk 0:01:05]} 43. Bg7 {[%clk 0:00:06]}  Kd5 {[%clk 0:01:05]} 44. Kf2 {[%clk 0:00:06]}  Kc4 {[%clk 0:01:06]} 45. Ke3 {[%clk 0:00:06]}  Kd5 {[%clk 0:01:03]} 46. Bf6 {[%clk 0:00:05]}  Ke6 {[%clk 0:01:02]} 47. Kxe4 {[%clk 0:00:05]} 1-0


[Site "https://www.chess.com"]

[Event "Late Titled Tuesday Blitz February 8 2022"]
[White "Chabris, Christopher"]
[Black "Okike, David"]
[WhiteFideId "2005263"]
[BlackFideId "8500134"]
[WhiteElo "2283"]
[BlackElo "2232"]
[Result "1-0"]
[Round "10"]
[TimeControl "180+1"]
[Date "2022.02.09"]
[WhiteClock "0:01:44"]
[BlackClock "0:01:54"]

1. e4 {[%clk 0:03:00]}  c5 {[%clk 0:02:58]} 2. Nf3 {[%clk 0:03:00]}  Nc6 {[%clk 0:02:58]} 3. Bb5 {[%clk 0:03:00]}  g6 {[%clk 0:02:56]} 4. Bxc6 {[%clk 0:03:00]}  bxc6 {[%clk 0:02:56]} 5. O-O {[%clk 0:02:59]}  Bg7 {[%clk 0:02:56]} 6. Re1 {[%clk 0:02:59]}  Nf6 {[%clk 0:02:57]} 7. e5 {[%clk 0:02:58]}  Nd5 {[%clk 0:02:57]} 8. c4 {[%clk 0:02:57]}  Nc7 {[%clk 0:02:57]} 9. d4 {[%clk 0:02:57]}  O-O {[%clk 0:02:57]} 10. dxc5 {[%clk 0:02:48]}  Ne6 {[%clk 0:02:57]} 11. Be3 {[%clk 0:02:36]}  Rb8 {[%clk 0:02:57]} 12. Qd2 {[%clk 0:02:32]}  Re8 {[%clk 0:02:50]} 13. Nc3 {[%clk 0:02:30]}  Qc7 {[%clk 0:02:50]} 14. Bh6 {[%clk 0:02:22]}  Bxh6 {[%clk 0:02:47]} 15. Qxh6 {[%clk 0:02:21]}  Rxb2 {[%clk 0:02:48]} 16. Ne4 {[%clk 0:02:16]}  Ba6 {[%clk 0:02:28]} 17. Nfg5 {[%clk 0:02:05]}  Nf8 {[%clk 0:02:17]} 18. Nf6+ {[%clk 0:01:50]}  exf6 {[%clk 0:02:02]} 19. exf6 {[%clk 0:01:50]}  Rxe1+ {[%clk 0:01:54]} 20. Rxe1 {[%clk 0:01:49]}  Ne6 {[%clk 0:01:55]} 21. Qxh7+ {[%clk 0:01:44]}  Kf8 {[%clk 0:01:54]} 22. Qxf7# {[%clk 0:01:44]} 1-0


[Site "https://www.chess.com"]

[Event "Late Titled Tuesday Blitz February 8 2022"]
[White "Clawitter, Craig"]
[Black "Rudzinska, Michalina"]
[WhiteFideId "2023105"]
[BlackFideId "1172883"]
[WhiteElo "2160"]
[BlackElo "1904"]
[Result "1-0"]
[Round "10"]
[TimeControl "180+1"]
[Date "2022.02.09"]
[WhiteClock "0:00:06"]
[BlackClock "0:00:39"]

1. e4 {[%clk 0:02:17]}  f5 {[%clk 0:02:54]} 2. exf5 {[%clk 0:02:17]}  d5 {[%clk 0:02:49]} 3. Qh5+ {[%clk 0:02:14]}  g6 {[%clk 0:02:49]} 4. fxg6 {[%clk 0:02:14]}  Kd7 {[%clk 0:02:43]} 5. Qxd5+ {[%clk 0:02:09]}  Ke8 {[%clk 0:02:42]} 6. Qf7+ {[%clk 0:02:06]}  Kd7 {[%clk 0:02:41]} 7. g7 {[%clk 0:01:57]}  Bxg7 {[%clk 0:02:40]} 8. Qxg7 {[%clk 0:01:57]}  Nf6 {[%clk 0:02:41]} 9. Nf3 {[%clk 0:01:53]}  Nc6 {[%clk 0:02:41]} 10. Bb5 {[%clk 0:01:50]}  Rg8 {[%clk 0:02:38]} 11. Qf7 {[%clk 0:01:37]}  a6 {[%clk 0:02:25]} 12. Ne5+ {[%clk 0:01:33]}  Kd6 {[%clk 0:02:25]} 13. Nc4+ {[%clk 0:01:32]}  Kc5 {[%clk 0:02:26]} 14. Bxc6 {[%clk 0:01:27]}  Kxc6 {[%clk 0:02:24]} 15. Nc3 {[%clk 0:01:06]}  Rxg2 {[%clk 0:02:15]} 16. Ne5+ {[%clk 0:01:03]}  Kb6 {[%clk 0:02:14]} 17. d3 {[%clk 0:00:57]}  Ka7 {[%clk 0:02:11]} 18. Be3+ {[%clk 0:00:56]}  Kb8 {[%clk 0:02:10]} 19. Qb3 {[%clk 0:00:48]}  Qd6 {[%clk 0:02:00]} 20. Nc4 {[%clk 0:00:45]}  Qc6 {[%clk 0:01:56]} 21. O-O-O {[%clk 0:00:42]}  Bg4 {[%clk 0:01:48]} 22. Ne5 {[%clk 0:00:38]}  Qd6 {[%clk 0:01:41]} 23. Nxg4 {[%clk 0:00:36]}  Nxg4 {[%clk 0:01:42]} 24. Rhg1 {[%clk 0:00:30]}  Nxe3 {[%clk 0:01:39]} 25. fxe3 {[%clk 0:00:29]}  Qxh2 {[%clk 0:01:40]} 26. Rxg2 {[%clk 0:00:27]}  Qxg2 {[%clk 0:01:41]} 27. Qd5 {[%clk 0:00:26]}  Qf2 {[%clk 0:01:35]} 28. Qe4 {[%clk 0:00:24]}  Qf6 {[%clk 0:01:31]} 29. Nd5 {[%clk 0:00:22]}  Qd6 {[%clk 0:01:26]} 30. Nxe7 {[%clk 0:00:21]}  a5 {[%clk 0:01:22]} 31. Rh1 {[%clk 0:00:16]}  Ra6 {[%clk 0:01:21]} 32. Rxh7 {[%clk 0:00:14]}  Qf6 {[%clk 0:01:13]} 33. Qd4 {[%clk 0:00:09]}  Qf1+ {[%clk 0:01:11]} 34. Kd2 {[%clk 0:00:09]}  Qf2+ {[%clk 0:01:11]} 35. Kc3 {[%clk 0:00:10]}  Qe1+ {[%clk 0:01:10]} 36. Kb3 {[%clk 0:00:07]}  Rb6+ {[%clk 0:01:08]} 37. Ka3 {[%clk 0:00:07]}  Qg3 {[%clk 0:00:48]} 38. Rh8+ {[%clk 0:00:07]}  Ka7 {[%clk 0:00:47]} 39. Nc8+ {[%clk 0:00:07]}  Ka6 {[%clk 0:00:46]} 40. Nxb6 {[%clk 0:00:08]}  cxb6 {[%clk 0:00:43]} 41. Qc4+ {[%clk 0:00:08]}  b5 {[%clk 0:00:43]} 42. Rh6+ {[%clk 0:00:08]}  Ka7 {[%clk 0:00:41]} 43. Qc5+ {[%clk 0:00:07]}  Ka8 {[%clk 0:00:39]} 44. Rh8+ {[%clk 0:00:06]} 1-0


[Site "https://www.chess.com"]

[Event "Late Titled Tuesday Blitz February 8 2022"]
[White "Costachi, Mihnea"]
[Black "Kouskoutis, Georgios-Alexandros"]
[WhiteFideId "1217518"]
[BlackFideId "4234049"]
[WhiteElo "2464"]
[BlackElo "2130"]
[Result "1-0"]
[Round "10"]
[TimeControl "180+1"]
[Date "2022.02.08"]
[WhiteClock "0:01:16"]
[BlackClock "0:00:03"]

1. e4 {[%clk 0:03:00]}  c5 {[%clk 0:02:58]} 2. b3 {[%clk 0:03:00]}  b6 {[%clk 0:02:58]} 3. Bb2 {[%clk 0:03:01]}  Bb7 {[%clk 0:02:58]} 4. Nc3 {[%clk 0:03:01]}  Nc6 {[%clk 0:02:57]} 5. Nf3 {[%clk 0:03:00]}  e6 {[%clk 0:02:54]} 6. d4 {[%clk 0:02:59]}  cxd4 {[%clk 0:02:53]} 7. Nxd4 {[%clk 0:03:00]}  Nf6 {[%clk 0:02:42]} 8. Be2 {[%clk 0:02:55]}  Rc8 {[%clk 0:02:33]} 9. O-O {[%clk 0:02:54]}  Nxd4 {[%clk 0:02:19]} 10. Qxd4 {[%clk 0:02:54]}  Bc5 {[%clk 0:02:19]} 11. Qd3 {[%clk 0:02:51]}  O-O {[%clk 0:01:29]} 12. Bf3 {[%clk 0:02:47]}  e5 {[%clk 0:00:48]} 13. Rad1 {[%clk 0:02:44]}  Bd4 {[%clk 0:00:46]} 14. Na4 {[%clk 0:02:42]}  Bxb2 {[%clk 0:00:43]} 15. Nxb2 {[%clk 0:02:43]}  Qc7 {[%clk 0:00:37]} 16. c4 {[%clk 0:02:42]}  Rfd8 {[%clk 0:00:37]} 17. Na4 {[%clk 0:02:42]}  d6 {[%clk 0:00:36]} 18. Nc3 {[%clk 0:02:42]}  Bc6 {[%clk 0:00:34]} 19. Qe2 {[%clk 0:02:42]}  g6 {[%clk 0:00:28]} 20. Bg4 {[%clk 0:02:42]}  Rb8 {[%clk 0:00:23]} 21. Rd3 {[%clk 0:02:39]}  a6 {[%clk 0:00:17]} 22. Rfd1 {[%clk 0:02:37]}  b5 {[%clk 0:00:17]} 23. cxb5 {[%clk 0:02:33]}  axb5 {[%clk 0:00:16]} 24. Bf3 {[%clk 0:02:32]}  b4 {[%clk 0:00:15]} 25. Nb1 {[%clk 0:02:31]}  Bb5 {[%clk 0:00:14]} 26. Nd2 {[%clk 0:02:15]}  Bxd3 {[%clk 0:00:14]} 27. Qxd3 {[%clk 0:02:16]}  Qc3 {[%clk 0:00:15]} 28. Qxc3 {[%clk 0:02:12]}  bxc3 {[%clk 0:00:16]} 29. Nc4 {[%clk 0:02:13]}  Rbc8 {[%clk 0:00:09]} 30. Rc1 {[%clk 0:02:10]}  d5 {[%clk 0:00:08]} 31. exd5 {[%clk 0:02:11]}  Nxd5 {[%clk 0:00:08]} 32. Bxd5 {[%clk 0:02:04]}  Rxd5 {[%clk 0:00:09]} 33. Nb6 {[%clk 0:02:05]}  Rcd8 {[%clk 0:00:05]} 34. Nxd5 {[%clk 0:02:05]}  Rxd5 {[%clk 0:00:06]} 35. Kf1 {[%clk 0:02:01]}  Rd2 {[%clk 0:00:06]} 36. a4 {[%clk 0:01:56]}  c2 {[%clk 0:00:05]} 37. Ke1 {[%clk 0:01:57]}  Rd3 {[%clk 0:00:06]} 38. Rxc2 {[%clk 0:01:51]}  Rxb3 {[%clk 0:00:07]} 39. Ra2 {[%clk 0:01:52]}  Kf8 {[%clk 0:00:04]} 40. a5 {[%clk 0:01:49]}  Rb7 {[%clk 0:00:04]} 41. Kd2 {[%clk 0:01:49]}  Ke7 {[%clk 0:00:04]} 42. a6 {[%clk 0:01:48]}  Ra7 {[%clk 0:00:04]} 43. Kc3 {[%clk 0:01:48]}  Kd6 {[%clk 0:00:05]} 44. Kb4 {[%clk 0:01:49]}  Kc6 {[%clk 0:00:05]} 45. Ka5 {[%clk 0:01:50]}  f5 {[%clk 0:00:03]} 46. Rc2+ {[%clk 0:01:51]}  Kd5 {[%clk 0:00:03]} 47. Kb6 {[%clk 0:01:51]}  Ra8 {[%clk 0:00:03]} 48. Kb7 {[%clk 0:01:51]}  Re8 {[%clk 0:00:03]} 49. a7 {[%clk 0:01:52]}  e4 {[%clk 0:00:03]} 50. Rc8 {[%clk 0:01:50]}  Re7+ {[%clk 0:00:03]} 51. Rc7 {[%clk 0:01:51]}  Re8 {[%clk 0:00:03]} 52. Rxh7 {[%clk 0:01:49]}  f4 {[%clk 0:00:03]} 53. Rf7 {[%clk 0:01:48]}  e3 {[%clk 0:00:03]} 54. a8=Q {[%clk 0:01:29]}  Rxa8 {[%clk 0:00:02]} 55. Kxa8 {[%clk 0:01:30]}  Ke4 {[%clk 0:00:02]} 56. fxe3 {[%clk 0:01:22]}  fxe3 {[%clk 0:00:02]} 57. h4 {[%clk 0:01:13]}  e2 {[%clk 0:00:01]} 58. Re7+ {[%clk 0:01:13]}  Kd3 {[%clk 0:00:01]} 59. g4 {[%clk 0:01:14]}  Kd2 {[%clk 0:00:02]} 60. h5 {[%clk 0:01:14]}  gxh5 {[%clk 0:00:02]} 61. gxh5 {[%clk 0:01:15]}  e1=Q {[%clk 0:00:02]} 62. Rxe1 {[%clk 0:01:15]}  Kxe1 {[%clk 0:00:03]} 63. h6 {[%clk 0:01:16]} 1-0


[Site "https://www.chess.com"]

[Event "Late Titled Tuesday Blitz February 8 2022"]
[White "Curtis, John"]
[Black "Domingo Nunez, Alejandro"]
[WhiteFideId "3200256"]
[BlackFideId "22245561"]
[WhiteElo "2203"]
[BlackElo "2215"]
[Result "0-1"]
[Round "10"]
[TimeControl "180+1"]
[Date "2022.02.09"]
[WhiteClock "0:00:01"]
[BlackClock "0:00:52"]

1. e4 {[%clk 0:03:00]}  g6 {[%clk 0:03:00]} 2. Nf3 {[%clk 0:02:59]}  Bg7 {[%clk 0:03:00]} 3. Be2 {[%clk 0:02:53]}  c6 {[%clk 0:03:01]} 4. O-O {[%clk 0:02:53]}  d5 {[%clk 0:03:01]} 5. d3 {[%clk 0:02:52]}  Nf6 {[%clk 0:03:01]} 6. Nbd2 {[%clk 0:02:49]}  O-O {[%clk 0:03:01]} 7. Re1 {[%clk 0:02:48]}  Nbd7 {[%clk 0:03:01]} 8. Bf1 {[%clk 0:02:48]}  e5 {[%clk 0:03:02]} 9. exd5 {[%clk 0:02:46]}  Nxd5 {[%clk 0:03:03]} 10. Nc4 {[%clk 0:02:44]}  Qc7 {[%clk 0:03:04]} 11. a4 {[%clk 0:02:40]}  Re8 {[%clk 0:03:01]} 12. a5 {[%clk 0:02:28]}  Nc5 {[%clk 0:02:44]} 13. d4 {[%clk 0:02:20]}  Nd7 {[%clk 0:02:38]} 14. dxe5 {[%clk 0:02:12]}  Nxe5 {[%clk 0:02:17]} 15. Ncxe5 {[%clk 0:02:02]}  Bxe5 {[%clk 0:02:18]} 16. Nxe5 {[%clk 0:01:58]}  Rxe5 {[%clk 0:02:19]} 17. Rxe5 {[%clk 0:01:37]}  Qxe5 {[%clk 0:02:18]} 18. c4 {[%clk 0:01:24]}  Nf6 {[%clk 0:02:18]} 19. Qd8+ {[%clk 0:01:19]}  Kg7 {[%clk 0:02:17]} 20. Be3 {[%clk 0:01:13]}  Qe8 {[%clk 0:02:03]} 21. Bh6+ {[%clk 0:00:56]}  Kxh6 {[%clk 0:02:03]} 22. Qxf6 {[%clk 0:00:57]}  Qe6 {[%clk 0:02:03]} 23. Qxe6 {[%clk 0:00:56]}  Bxe6 {[%clk 0:02:04]} 24. Rd1 {[%clk 0:00:56]}  Kg5 {[%clk 0:02:00]} 25. g3 {[%clk 0:00:55]}  Kf6 {[%clk 0:02:01]} 26. f4 {[%clk 0:00:54]}  Ke7 {[%clk 0:02:01]} 27. Kf2 {[%clk 0:00:53]}  b6 {[%clk 0:02:02]} 28. Ra1 {[%clk 0:00:49]}  b5 {[%clk 0:01:50]} 29. cxb5 {[%clk 0:00:45]}  cxb5 {[%clk 0:01:51]} 30. Rc1 {[%clk 0:00:41]}  Kd6 {[%clk 0:01:46]} 31. b4 {[%clk 0:00:32]}  a6 {[%clk 0:01:42]} 32. Ke3 {[%clk 0:00:32]}  Bd5 {[%clk 0:01:41]} 33. Kd4 {[%clk 0:00:25]}  Re8 {[%clk 0:01:41]} 34. Bd3 {[%clk 0:00:25]}  f5 {[%clk 0:01:39]} 35. Rc5 {[%clk 0:00:24]}  Be4 {[%clk 0:01:38]} 36. Re5 {[%clk 0:00:20]}  Rc8 {[%clk 0:01:37]} 37. Rc5 {[%clk 0:00:15]}  Rxc5 {[%clk 0:01:34]} 38. bxc5+ {[%clk 0:00:15]}  Kc6 {[%clk 0:01:34]} 39. Bxe4+ {[%clk 0:00:15]}  fxe4 {[%clk 0:01:35]} 40. g4 {[%clk 0:00:14]}  e3 {[%clk 0:01:22]} 41. Kxe3 {[%clk 0:00:14]}  Kxc5 {[%clk 0:01:22]} 42. Ke4 {[%clk 0:00:09]}  h5 {[%clk 0:01:01]} 43. h3 {[%clk 0:00:06]}  Kd6 {[%clk 0:01:00]} 44. Kd4 {[%clk 0:00:06]}  Ke6 {[%clk 0:00:56]} 45. Kc5 {[%clk 0:00:05]}  h4 {[%clk 0:00:54]} 46. Kd4 {[%clk 0:00:03]}  Kd6 {[%clk 0:00:54]} 47. Kd3 {[%clk 0:00:01]}  Kc5 {[%clk 0:00:52]} 0-1


[Site "https://www.chess.com"]

[Event "Late Titled Tuesday Blitz February 8 2022"]
[White "Dourerassou, Jonathan"]
[Black "Bortnyk, Olexandr"]
[WhiteFideId "628050"]
[BlackFideId "14120828"]
[WhiteElo "2513"]
[BlackElo "2723"]
[Result "0-1"]
[Round "10"]
[TimeControl "180+1"]
[Date "2022.02.08"]
[WhiteClock "0:00:58"]
[BlackClock "0:01:12"]

1. d4 {[%clk 0:03:00]}  Nf6 {[%clk 0:02:50]} 2. c4 {[%clk 0:03:00]}  b6 {[%clk 0:02:51]} 3. Nc3 {[%clk 0:03:00]}  Bb7 {[%clk 0:02:51]} 4. e3 {[%clk 0:02:58]}  e6 {[%clk 0:02:47]} 5. Nf3 {[%clk 0:02:57]}  d5 {[%clk 0:02:45]} 6. cxd5 {[%clk 0:02:56]}  exd5 {[%clk 0:02:46]} 7. Bd3 {[%clk 0:02:55]}  a6 {[%clk 0:02:47]} 8. Bd2 {[%clk 0:02:55]}  Bd6 {[%clk 0:02:47]} 9. Rc1 {[%clk 0:02:55]}  Nbd7 {[%clk 0:02:47]} 10. O-O {[%clk 0:02:55]}  O-O {[%clk 0:02:46]} 11. Bb1 {[%clk 0:02:54]}  Ne4 {[%clk 0:02:38]} 12. h3 {[%clk 0:02:47]}  f5 {[%clk 0:02:26]} 13. Qe2 {[%clk 0:02:45]}  Qf6 {[%clk 0:02:21]} 14. Ne1 {[%clk 0:02:36]}  Rae8 {[%clk 0:02:17]} 15. Nd3 {[%clk 0:02:31]}  f4 {[%clk 0:02:17]} 16. Nxe4 {[%clk 0:02:23]}  Rxe4 {[%clk 0:01:59]} 17. Ne5 {[%clk 0:02:10]}  Rxe5 {[%clk 0:01:47]} 18. dxe5 {[%clk 0:02:09]}  Qxe5 {[%clk 0:01:48]} 19. Bc3 {[%clk 0:02:03]}  f3 {[%clk 0:01:45]} 20. Bxe5 {[%clk 0:01:54]}  fxe2 {[%clk 0:01:46]} 21. Bxd6 {[%clk 0:01:51]}  exf1=Q+ {[%clk 0:01:47]} 22. Kxf1 {[%clk 0:01:51]}  cxd6 {[%clk 0:01:48]} 23. Rc7 {[%clk 0:01:51]}  Nc5 {[%clk 0:01:45]} 24. b4 {[%clk 0:01:50]}  Rc8 {[%clk 0:01:35]} 25. Rxc8+ {[%clk 0:01:48]}  Bxc8 {[%clk 0:01:36]} 26. bxc5 {[%clk 0:01:48]}  dxc5 {[%clk 0:01:35]} 27. Ke2 {[%clk 0:01:44]}  g6 {[%clk 0:01:35]} 28. a3 {[%clk 0:01:41]}  Kf7 {[%clk 0:01:33]} 29. g4 {[%clk 0:01:38]}  b5 {[%clk 0:01:27]} 30. f4 {[%clk 0:01:37]}  Ke6 {[%clk 0:01:25]} 31. f5+ {[%clk 0:01:32]}  Kf6 {[%clk 0:01:24]} 32. fxg6 {[%clk 0:01:31]}  hxg6 {[%clk 0:01:25]} 33. Kf3 {[%clk 0:01:29]}  g5 {[%clk 0:01:24]} 34. Kg3 {[%clk 0:01:29]}  a5 {[%clk 0:01:23]} 35. h4 {[%clk 0:01:28]}  b4 {[%clk 0:01:19]} 36. axb4 {[%clk 0:01:27]}  cxb4 {[%clk 0:01:15]} 37. h5 {[%clk 0:01:27]}  a4 {[%clk 0:01:15]} 38. h6 {[%clk 0:01:08]}  b3 {[%clk 0:01:14]} 39. e4 {[%clk 0:01:05]}  dxe4 {[%clk 0:01:13]} 40. Bxe4 {[%clk 0:01:06]}  a3 {[%clk 0:01:13]} 41. Bf5 {[%clk 0:00:56]}  Bxf5 {[%clk 0:01:11]} 42. gxf5 {[%clk 0:00:57]}  b2 {[%clk 0:01:11]} 43. h7 {[%clk 0:00:57]}  Kg7 {[%clk 0:01:12]} 44. f6+ {[%clk 0:00:58]}  Kxh7 {[%clk 0:01:12]} 0-1


[Site "https://www.chess.com"]

[Event "Late Titled Tuesday Blitz February 8 2022"]
[White "Erdogdu, Mert"]
[Black "Djokic, Mihailo"]
[WhiteFideId "6301495"]
[BlackFideId "976440"]
[WhiteElo "2485"]
[BlackElo "2008"]
[Result "1-0"]
[Round "10"]
[TimeControl "180+1"]
[Date "2022.02.08"]
[WhiteClock "0:00:04"]
[BlackClock "0:00:01"]

1. e4 {[%clk 0:03:00]}  c5 {[%clk 0:02:59]} 2. Nf3 {[%clk 0:02:59]}  d6 {[%clk 0:02:59]} 3. d4 {[%clk 0:02:59]}  cxd4 {[%clk 0:03:00]} 4. Nxd4 {[%clk 0:03:00]}  Nf6 {[%clk 0:03:00]} 5. Nc3 {[%clk 0:03:01]}  g6 {[%clk 0:03:00]} 6. Be3 {[%clk 0:03:01]}  Bg7 {[%clk 0:03:00]} 7. f3 {[%clk 0:03:01]}  O-O {[%clk 0:03:01]} 8. Qd2 {[%clk 0:03:01]}  Nc6 {[%clk 0:03:02]} 9. Bc4 {[%clk 0:03:02]}  Bd7 {[%clk 0:03:02]} 10. h4 {[%clk 0:03:02]}  Rc8 {[%clk 0:03:03]} 11. Bb3 {[%clk 0:03:02]}  h5 {[%clk 0:03:03]} 12. O-O-O {[%clk 0:03:01]}  Ne5 {[%clk 0:03:04]} 13. Bg5 {[%clk 0:03:01]}  Rc5 {[%clk 0:03:03]} 14. Kb1 {[%clk 0:03:01]}  Re8 {[%clk 0:03:02]} 15. Bh6 {[%clk 0:02:49]}  Bxh6 {[%clk 0:03:01]} 16. Qxh6 {[%clk 0:02:49]}  Rxc3 {[%clk 0:03:02]} 17. bxc3 {[%clk 0:02:49]}  a5 {[%clk 0:03:01]} 18. g4 {[%clk 0:02:34]}  a4 {[%clk 0:03:01]} 19. gxh5 {[%clk 0:02:34]}  axb3 {[%clk 0:03:00]} 20. cxb3 {[%clk 0:02:05]}  Nxh5 {[%clk 0:02:48]} 21. Rhg1 {[%clk 0:02:03]}  Ng7 {[%clk 0:02:39]} 22. h5 {[%clk 0:02:00]}  e6 {[%clk 0:02:15]} 23. hxg6 {[%clk 0:01:56]}  Nxg6 {[%clk 0:02:14]} 24. f4 {[%clk 0:01:48]}  Qf6 {[%clk 0:02:07]} 25. Rdf1 {[%clk 0:01:35]}  e5 {[%clk 0:01:48]} 26. f5 {[%clk 0:01:10]}  Qh4 {[%clk 0:01:32]} 27. Rxg6 {[%clk 0:00:59]}  Qxh6 {[%clk 0:01:31]} 28. Rxh6 {[%clk 0:00:58]}  exd4 {[%clk 0:01:31]} 29. cxd4 {[%clk 0:00:51]}  Rxe4 {[%clk 0:01:29]} 30. f6 {[%clk 0:00:49]}  Bf5 {[%clk 0:00:26]} 31. Ka1 {[%clk 0:00:33]}  Bg6 {[%clk 0:00:20]} 32. fxg7 {[%clk 0:00:27]}  Rxd4 {[%clk 0:00:20]} 33. Rh2 {[%clk 0:00:23]}  Kxg7 {[%clk 0:00:20]} 34. Kb2 {[%clk 0:00:22]}  b5 {[%clk 0:00:18]} 35. Rff2 {[%clk 0:00:21]}  Re4 {[%clk 0:00:09]} 36. Rd2 {[%clk 0:00:18]}  Re6 {[%clk 0:00:08]} 37. Rhf2 {[%clk 0:00:19]}  b4 {[%clk 0:00:08]} 38. Rf4 {[%clk 0:00:18]}  Be4 {[%clk 0:00:08]} 39. Rd4 {[%clk 0:00:18]}  f5 {[%clk 0:00:07]} 40. Rxb4 {[%clk 0:00:17]}  d5 {[%clk 0:00:06]} 41. Kc3 {[%clk 0:00:17]}  Kf6 {[%clk 0:00:06]} 42. Kd4 {[%clk 0:00:17]}  Kg5 {[%clk 0:00:06]} 43. Rf2 {[%clk 0:00:17]}  f4 {[%clk 0:00:06]} 44. Rb8 {[%clk 0:00:18]}  f3 {[%clk 0:00:05]} 45. Rg8+ {[%clk 0:00:16]}  Kf4 {[%clk 0:00:05]} 46. a4 {[%clk 0:00:15]}  Rb6 {[%clk 0:00:05]} 47. Kc3 {[%clk 0:00:06]}  d4+ {[%clk 0:00:02]} 48. Kxd4 {[%clk 0:00:06]}  Rd6+ {[%clk 0:00:02]} 49. Kc5 {[%clk 0:00:06]}  Rd5+ {[%clk 0:00:02]} 50. Kc4 {[%clk 0:00:06]}  Rd7 {[%clk 0:00:02]} 51. Rf8+ {[%clk 0:00:06]}  Ke3 {[%clk 0:00:02]} 52. Rh2 {[%clk 0:00:06]}  Rc7+ {[%clk 0:00:03]} 53. Kb4 {[%clk 0:00:07]}  Rb7+ {[%clk 0:00:03]} 54. Ka3 {[%clk 0:00:07]}  Bd5 {[%clk 0:00:01]} 55. b4 {[%clk 0:00:07]}  Rc7 {[%clk 0:00:02]} 56. b5 {[%clk 0:00:07]}  Rc3+ {[%clk 0:00:02]} 57. Kb4 {[%clk 0:00:07]}  Rc4+ {[%clk 0:00:02]} 58. Ka5 {[%clk 0:00:08]}  Be4 {[%clk 0:00:02]} 59. b6 {[%clk 0:00:06]}  Bc6 {[%clk 0:00:02]} 60. Ra2 {[%clk 0:00:05]}  f2 {[%clk 0:00:01]} 61. Ka6 {[%clk 0:00:04]}  Rxa4+ {[%clk 0:00:01]} 62. Rxa4 {[%clk 0:00:04]}  Bxa4 {[%clk 0:00:01]} 63. Rxf2 {[%clk 0:00:04]} 1-0


[Site "https://www.chess.com"]